fUST/lending_fUST_20260413
["ID","MTS","AMOUNT","RATE_DAILY","PERIOD"]
[420418201,1776089455838,-3044.4980722,0.00015,2]
[420418202,1776089455847,-1749.96585331,0.00015,2]
[420418203,1776089455858,-300.0,0.00015,2]
[420418204,1776089455876,-6000.0,0.00015068,2]
[420418205,1776089455885,-500.0,0.00015068,2]
[420418206,1776089455904,-5736.35,0.00015068,2]
[420418207,1776089455914,-200.738512,0.00015068,2]
[420418208,1776089455941,-306.95886522,0.00015084,2]
[420418209,1776089455968,-500.0,0.00015084,2]
[420418210,1776089455978,-500.0,0.00015084,2]
[420418211,1776089455990,-500.0,0.00015084,2]
[420418212,1776089456025,-500.0,0.00015084,2]
[420418213,1776089456038,-500.0,0.00015084,2]
[420418214,1776089456075,-500.0,0.00015084,2]
[420418215,1776089456099,-500.0,0.00015084,2]
[420418216,1776089456114,-174.52076652,0.00015096,2]
[420418217,1776089456153,-693.3919763,0.00015096,2]
[420418218,1776089456163,-2773.56790519,0.00015096,2]
[420418219,1776089456194,-3044.4980722,0.000152,2]
[420418220,1776089456225,-267.87618595,0.00015204,2]
[420418221,1776089456236,-303.41256854,0.00015261,2]
[420418222,1776089456254,-3044.4980722,0.000153,2]
[420418223,1776089456273,-368.86667894,0.00015342,2]
[420418224,1776089456284,-5736.35,0.00015342,2]
[420418225,1776089456301,-10000.0,0.00015342,2]
[420418226,1776089456314,-503.81587656,0.00015342,2]
[420418227,1776089456324,-2000.0,0.00015342,2]
[420418228,1776089456340,-2000.0,0.00015342,2]
[420418229,1776089456350,-2000.0,0.00015342,2]
[420418230,1776089456362,-2000.0,0.00015342,2]
[420418231,1776089456373,-1510.76546506,0.00015342,2]
[420418232,1776089456395,-2000.0,0.00015342,2]
[420418233,1776089456405,-2000.0,0.00015342,2]
[420418234,1776089456427,-2000.0,0.00015342,2]
[420418235,1776089456438,-1515.560814,0.00015342,2]
[420418236,1776089456448,-2000.0,0.00015342,2]
[420418237,1776089456465,-2000.0,0.00015342,2]
[420418238,1776089456479,-1099.97993775,0.00015342,2]
[420418239,1776089456489,-2000.0,0.00015342,2]
[420418240,1776089456509,-374.56793452,0.00015342,2]
[420418241,1776089456524,-412.74436294,0.00015342,2]
[420418242,1776089456534,-2000.0,0.00015342,2]
[420418243,1776089456552,-181.08010149,0.00015367,2]
[420418244,1776089456568,-7771.43,0.00015442,2]
[420418245,1776089456578,-5500.0,0.00015452,2]
[420418246,1776089456601,-174.44305886,0.00015467,20]
[420418247,1776089456620,-157.49572145,0.00015487,2]
[420418248,1776089456641,-3044.4980722,0.000155,2]
[420418249,1776089456672,-2261.7550824,0.00015571,2]
[420418250,1776089456687,-3044.4980722,0.000156,2]
[420418251,1776089456723,-5736.35,0.00015616,2]
[420418252,1776089456759,-320.04,0.00015624,2]
[420418253,1776089456769,-1000.37401701,0.00015632,2]
[420418254,1776089456807,-265.6630134,0.00015632,2]
[420418255,1776089456819,-250.0,0.00015632,2]
[420418256,1776089456828,-1000.0,0.00015632,2]
[420418257,1776089456848,-1000.0,0.00015632,2]
[420418258,1776089456871,-1000.0,0.00015632,2]
[420418259,1776089456880,-1000.0,0.00015632,2]
[420418260,1776089456890,-1000.0,0.00015632,2]
[420418261,1776089456909,-719.04747942,0.00015644,2]
[420418262,1776089456917,-2876.18991768,0.00015644,2]
[420418263,1776089456927,-241.90262778,0.00015775,2]
[420418264,1776089456937,-3044.4980722,0.000158,2]
[420418265,1776089456957,-5736.35,0.0001589,2]
[420418266,1776089456976,-735.6539885,0.0001589,2]
[420418267,1776089456986,-2500.0,0.0001589,2]
[420418268,1776089456998,-2500.0,0.0001589,2]
[420418269,1776089457008,-2500.0,0.0001589,2]
[420418270,1776089457029,-2500.0,0.0001589,2]
[420418271,1776089457045,-447.95898841,0.0001589,2]
[420418272,1776089457053,-2500.0,0.0001589,2]
[420418273,1776089457084,-980.44952762,0.0001589,2]
[420418274,1776089457095,-1748.70235912,0.0001589,2]
[420418275,1776089457125,-2500.0,0.0001589,2]
[420418276,1776089457144,-3044.4980722,0.000159,2]
[420418277,1776089457170,-34448.0,0.00016,2]
[420418278,1776089457187,-58639.09913123,0.00016,2]
[420418279,1776089457203,-1520.11768549,0.00016,2]
[420418280,1776089457232,-500.0,0.00016005,2]
[420418281,1776089457243,-186.16199811,0.00016028,2]
[420418282,1776089457260,-410.02649937,0.0001606,2]
[420418283,1776089457270,-174.44305886,0.00016065,22]
[420418284,1776089457282,-3044.4980722,0.000161,2]
[420418285,1776089457300,-1000.0,0.00016134,2]
[420418286,1776089457314,-151.5567,0.00016137,2]
[420418287,1776089457325,-5736.35,0.00016164,2]
[420418288,1776089457346,-350.0,0.0001618,2]
[420418289,1776089457361,-1500.0,0.0001618,2]
[420418290,1776089457371,-1500.0,0.0001618,2]
[420418291,1776089457390,-1500.0,0.0001618,2]
[420418292,1776089457406,-1500.0,0.0001618,2]
[420418293,1776089457420,-1500.0,0.0001618,2]
[420418294,1776089457456,-745.65223616,0.00016192,2]
[420418295,1776089457479,-2982.60894464,0.00016192,2]
[420418296,1776089457521,-3044.4980722,0.000162,2]
[420418297,1776089457543,-494.1,0.00016319,2]
[420418298,1776089457577,-1408.0,0.00016319,2]
[420418299,1776089457587,-184.0,0.00016319,2]
[420418300,1776089457603,-6198.0,0.00016336,2]
[420418301,1776089457635,-3044.4980722,0.000164,2]
[420418302,1776089457647,-1411.0,0.00016438,2]
[420418303,1776089457667,-5736.35,0.00016438,2]
[420418304,1776089457689,-250.0,0.00016438,3]
[420418305,1776089457699,-595.060184,0.00016438,2]
[420418306,1776089457723,-3000.0,0.00016438,2]
[420418307,1776089457740,-3000.0,0.00016438,2]
[420418308,1776089457753,-3000.0,0.00016438,2]
[420418309,1776089457763,-3000.0,0.00016438,2]
[420418310,1776089457774,-3000.0,0.00016438,2]
[420418311,1776089457802,-3000.0,0.00016438,2]
[420418312,1776089457813,-174.44305886,0.00016663,24]
[420418313,1776089457830,-1411.0,0.00016712,2]
[420418314,1776089457880,-5736.35,0.00016712,2]
[420418315,1776089457890,-450.0,0.00016728,2]
[420418316,1776089457908,-2000.0,0.00016728,2]
[420418317,1776089457918,-239.57321936,0.00016728,2]
[420418318,1776089457928,-2000.0,0.00016728,2]
[420418319,1776089457939,-2000.0,0.00016728,2]
[420418320,1776089457952,-730.40857105,0.00016728,2]
[420418321,1776089457967,-185.34996247,0.00016736,2]
[420418322,1776089457979,-773.2413689,0.0001674,2]
[420418323,1776089457994,-3092.96547559,0.0001674,2]
[420418324,1776089458009,-500.0,0.00016805,2]
[420418325,1776089458034,-160.0,0.00016951,3]
[420418326,1776089458045,-1411.0,0.00016986,2]
[420418327,1776089458066,-5736.35,0.00016986,2]
[420418328,1776089458080,-3500.0,0.00016986,2]
[420418329,1776089458093,-250.0,0.00016986,2]
[420418330,1776089458120,-3500.0,0.00016986,2]
[420418331,1776089458135,-1877.58321192,0.00016986,2]
[420418332,1776089458183,-3500.0,0.00016986,2]
[420418333,1776089458224,-3500.0,0.00016986,2]
[420418334,1776089458235,-3500.0,0.00016986,2]
[420418335,1776089458252,-2000.0,0.00017,2]
[420418336,1776089458283,-152.0,0.00017058,7]
[420418337,1776089458299,-152.0,0.00017058,7]
[420418338,1776089458310,-152.0,0.00017058,7]
[420418339,1776089458351,-152.0,0.00017058,7]
[420418340,1776089458361,-152.0,0.00017058,7]
[420418341,1776089458381,-152.0,0.00017058,7]
[420418342,1776089458398,-152.0,0.00017058,7]
[420418343,1776089458412,-152.0,0.00017058,7]
[420418344,1776089458424,-152.0,0.00017058,7]
[420418345,1776089458449,-152.0,0.00017058,7]
[420418346,1776089458460,-152.0,0.00017058,7]
[420418347,1776089458499,-152.0,0.00017058,7]
[420418348,1776089458512,-152.0,0.00017058,7]
[420418349,1776089458528,-152.0,0.00017058,7]
[420418350,1776089458544,-152.0,0.00017058,7]
[420418351,1776089458568,-152.0,0.00017058,7]
[420418352,1776089458578,-152.0,0.00017058,7]
[420418353,1776089458592,-1411.0,0.0001726,2]
[420418354,1776089458607,-5736.37746507,0.0001726,2]
[420418355,1776089458620,-174.44305886,0.0001726,26]
[420418356,1776089458632,-335.16504664,0.00017261,2]
[420418357,1776089458644,-210.47827569,0.00017276,2]
[420418358,1776089458659,-2500.0,0.00017276,2]
[420418359,1776089458676,-453.56128881,0.00017276,2]
[420418360,1776089458686,-863.46429782,0.00017276,2]
[420418361,1776089458696,-238.80320206,0.00017288,2]
[420418362,1776089458706,-3207.40519818,0.00017288,2]
[420418363,1776089458720,-2261.7550824,0.00017324,2]
[420418364,1776089458734,-1411.0,0.00017534,2]
[420418365,1776089458744,-4000.0,0.00017534,2]
[420418366,1776089458756,-350.0,0.00017534,2]
[420418367,1776089458767,-4000.0,0.00017534,2]
[420418368,1776089458785,-4000.0,0.00017534,2]
[420418369,1776089458795,-4000.0,0.00017534,2]
[420418370,1776089458805,-500.0,0.00017645,2]
[420418371,1776089458816,-975.64797653,0.00017743,2]
[420418372,1776089458832,-1000.0,0.00017747,2]
[420418373,1776089458850,-244.0,0.00017747,2]
[420418374,1776089458861,-2000.0,0.000178,2]
[420418375,1776089458874,-1411.0,0.00017808,2]
[420418376,1776089458892,-3000.0,0.00017824,2]
[420418377,1776089458905,-3326.07919052,0.00017836,2]
[420418378,1776089458915,-174.44305886,0.00017858,28]
[420418379,1776089458931,-2000.0,0.000179,2]
[420418380,1776089458943,-800.0,0.00017907,2]
[420418381,1776089458953,-1087.0,0.00017969,2]
[420418382,1776089458965,-800.0,0.00017998,2]
[420418383,1776089458982,-1000.0,0.00018,2]
[420418384,1776089459000,-250.0,0.00018,2]
[420418385,1776089459011,-499.99999901,0.00018,2]
[420418386,1776089459020,-827.0,0.00018,2]
[420418387,1776089459036,-185.3311047,0.00018,2]
[420418388,1776089459049,-234.0,0.0001805,2]
[420418389,1776089459061,-563.0,0.0001805,2]
[420418390,1776089459071,-246.0,0.0001805,2]
[420418391,1776089459089,-658.0,0.0001805,2]
[420418392,1776089459102,-1180.0,0.0001805,2]
[420418393,1776089459120,-759318.13898528,0.0001805,2]
[420418394,1776089459130,-744.0,0.0001805,2]
[420418395,1776089459146,-1411.0,0.00018082,2]
[420418396,1776089459161,-1023.9857593,0.00018082,2]
[420418397,1776089459175,-450.0,0.00018082,2]
[420418398,1776089459188,-4500.0,0.00018082,2]
[420418399,1776089459209,-4500.0,0.00018082,2]
[420418400,1776089459220,-485.01,0.000181,2]
[420418401,1776089459232,-645.73,0.00018141,2]
[420418402,1776089459246,-185.3311047,0.000182,2]
[420418403,1776089459268,-219.71006827,0.00018215,60]
[420418404,1776089459279,-1411.0,0.00018356,2]
[420418405,1776089459291,-250.0,0.00018356,2]
[420418406,1776089459311,-3500.0,0.00018372,2]
[420418407,1776089459321,-3449.14412057,0.00018384,2]
[420418408,1776089459330,-185.3311047,0.000184,2]
[420418409,1776089459347,-160.0,0.00018426,4]
[420418410,1776089459361,-191.78736475,0.00018456,30]
[420418411,1776089459371,-185.3311047,0.000185,2]
[420418412,1776089459383,-681.03,0.000185,2]
[420418413,1776089459394,-1411.0,0.0001863,2]
[420418414,1776089459404,-668.73353711,0.0001863,2]
[420418415,1776089459420,-5000.0,0.0001863,2]
[420418416,1776089459432,-5000.0,0.0001863,2]
[420418417,1776089459442,-185.3311047,0.000187,2]
[420418418,1776089459466,-1400.0,0.000187,2]
[420418419,1776089459476,-1400.0,0.000187,2]
[420418420,1776089459503,-1400.0,0.000187,2]
[420418421,1776089459531,-1400.0,0.000187,2]
[420418422,1776089459543,-1400.0,0.000187,2]
[420418423,1776089459554,-1400.0,0.000187,2]
[420418424,1776089459601,-1400.0,0.000187,2]
[420418425,1776089459610,-1400.0,0.000187,2]
[420418426,1776089459654,-1400.0,0.000187,2]
[420418427,1776089459667,-1010.0,0.000187,2]
[420418428,1776089459685,-325.2214705,0.00018725,2]
[420418429,1776089459709,-1100.0,0.0001874,2]
[420418430,1776089459718,-1100.0,0.0001874,2]
[420418431,1776089459728,-1100.0,0.0001874,2]
[420418432,1776089459751,-1100.0,0.0001874,2]
[420418433,1776089459761,-1100.0,0.0001874,2]
[420418434,1776089459774,-1100.0,0.0001874,2]
[420418435,1776089459809,-1100.0,0.0001874,2]
[420418436,1776089459834,-1100.0,0.0001874,2]
[420418437,1776089459850,-1100.0,0.0001874,2]
[420418438,1776089459888,-657.0,0.0001874,2]
[420418439,1776089459908,-198.0,0.0001874,2]
[420418440,1776089459932,-150.14886585,0.00018747,30]
[420418441,1776089459947,-1411.0,0.00018904,2]
[420418442,1776089459962,-350.0,0.00018904,2]
[420418443,1776089459975,-1450.0,0.00018904,2]
[420418444,1776089459986,-1450.0,0.00018904,2]
[420418445,1776089460000,-1450.0,0.00018904,2]
[420418446,1776089460011,-1450.0,0.00018904,2]
[420418447,1776089460024,-1450.0,0.00018904,2]
[420418448,1776089460035,-1450.0,0.00018904,2]
[420418449,1776089460047,-1450.0,0.00018904,2]
[420418450,1776089460058,-1450.0,0.00018904,2]
[420418451,1776089460074,-1450.0,0.00018904,2]
[420418452,1776089460086,-1234.0,0.00018904,2]
[420418453,1776089460096,-3576.76245303,0.00018932,2]
[420418454,1776089460113,-219.71006827,0.00018962,60]
[420418455,1776089460124,-400.0,0.0001899,3]
[420418456,1776089460134,-1018.83386003,0.00019,30]
[420418457,1776089460152,-200000.0,0.00019,4]
[420418458,1776089460163,-223.39439773,0.00019022,2]
[420418459,1776089460175,-234.0,0.0001905,2]
[420418460,1776089460190,-563.0,0.0001905,2]
[420418461,1776089460208,-246.0,0.0001905,2]
[420418462,1776089460220,-658.0,0.0001905,2]
[420418463,1776089460230,-1180.0,0.0001905,2]
[420418464,1776089460240,-744.0,0.0001905,2]
[420418465,1776089460257,-4669.97505007,0.00019069,2]
[420418466,1776089460267,-2261.7550824,0.00019078,2]
[420418467,1776089460278,-200.0,0.00019178,2]
[420418468,1776089460294,-1285.1497,0.00019178,2]
[420418469,1776089460304,-1285.1497,0.00019178,2]
[420418470,1776089460317,-1285.1497,0.00019178,2]
[420418471,1776089460337,-1285.1497,0.00019178,2]
[420418472,1776089460347,-1411.0,0.00019178,2]
[420418473,1776089460358,-1285.1497,0.00019178,2]
[420418474,1776089460378,-1285.1497,0.00019178,2]
[420418475,1776089460395,-1285.1497,0.00019178,2]
[420418476,1776089460407,-1285.1497,0.00019178,2]
[420418477,1776089460420,-1285.1497,0.00019178,2]
[420418478,1776089460437,-200.0,0.00019178,2]
[420418479,1776089460446,-1285.1497,0.00019178,2]
[420418480,1776089460473,-1274.43,0.00019178,2]
[420418481,1776089460497,-256.0190873,0.00019178,2]
[420418482,1776089460508,-256.0190873,0.00019178,2]
[420418483,1776089460529,-256.0190873,0.00019178,2]
[420418484,1776089460543,-5500.0,0.00019178,2]
[420418485,1776089460570,-3006.92657573,0.00019178,2]
[420418486,1776089460581,-3162.52448741,0.00019205,5]
[420418487,1776089460600,-752.73,0.00019247,2]
[420418488,1776089460613,-366.91752475,0.00019261,2]
[420418489,1776089460623,-184.0,0.00019319,2]
[420418490,1776089460654,-1411.0,0.00019452,2]
[420418491,1776089460664,-237.73200963,0.00019452,18]
[420418492,1776089460673,-450.0,0.00019452,2]
[420418493,1776089460700,-3709.10266379,0.0001948,2]
[420418494,1776089460711,-10922.01193532,0.000195,2]
[420418495,1776089460724,-1000.0,0.00019522,2]
[420418496,1776089460743,-492.0,0.00019522,2]
[420418497,1776089460753,-432.9815925,0.00019548,2]
[420418498,1776089460763,-196.3945489,0.00019641,2]
[420418499,1776089460791,-492.4792192,0.00019726,3]
[420418500,1776089460805,-1242.0,0.00019726,2]
[420418501,1776089460815,-237.73200963,0.00019726,18]
[420418502,1776089460834,-1528.0,0.00019726,2]
[420418503,1776089460848,-6000.0,0.00019726,2]
[420418504,1776089460858,-162.24198597,0.00019788,14]
[420418505,1776089460879,-562.21163831,0.000198,7]
[420418506,1776089460893,-11618.16,0.000198,2]
[420418507,1776089460907,-163.09876535,0.000198,60]
[420418508,1776089460923,-160.0,0.000199,5]
[420418509,1776089460951,-160.93290799,0.000199,5]
[420418510,1776089460963,-458.4669933,0.00019999,20]
[420418511,1776089460973,-500.0,0.00019999,10]
[420418512,1776089460994,-148331.37037644,0.0002,2]
[420418513,1776089461021,-887539.56680118,0.0002,2]
[420418514,1776089461057,-994484.47727851,0.0002,2]
[420418515,1776089461070,-150619.32032118,0.0002,2]
[420418516,1776089461090,-195852.40258067,0.0002,2]
[420418517,1776089461113,-161.5067858,0.0002,2]
[420418518,1776089461146,-855098.51317521,0.0002,2]
[420418519,1776089461163,-207.49990409,0.0002,2]
[420418520,1776089461189,-172.36030382,0.0002,7]
[420418521,1776089461203,-172.36030382,0.0002,7]
[420418522,1776089461230,-375.38056571,0.0002,2]
[420418523,1776089461240,-204.79296418,0.0002,2]
[420418524,1776089461263,-386539.81498244,0.0002,2]
[420418525,1776089461272,-156.29568225,0.0002,2]
[420418526,1776089461294,-59511.0,0.0002,7]
[420418527,1776089461305,-283.10277755,0.0002,30]
[420418528,1776089461332,-1929.88444533,0.0002,2]
[420418529,1776089461351,-150.0,0.0002,2]
[420418530,1776089461364,-7775.04028433,0.0002,2]
[420418531,1776089461387,-14853.1046931,0.0002,2]
[420418532,1776089461398,-2264.0,0.0002,2]
[420418533,1776089461418,-1792.76380238,0.0002,2]
[420418534,1776089461429,-52630.51693264,0.0002,2]
[420418535,1776089461445,-86000.0,0.0002,5]
[420418536,1776089461458,-13969.24528456,0.0002,2]
[420418537,1776089461472,-658.85,0.0002,14]
[420418538,1776089461488,-1150.32299641,0.0002,5]
[420418539,1776089461513,-450.93,0.0002,3]
[420418540,1776089461528,-600.2,0.0002,2]
[420418541,1776089461546,-200.98297966,0.0002,2]
[420418542,1776089461561,-5190.0,0.0002,2]
[420418543,1776089461590,-150314.88714459,0.0002,2]
[420418544,1776089461601,-17656.45307567,0.0002,7]
[420418545,1776089461761,-2845.42046994,0.0002,7]
[420418546,1776089461783,-1268.88875421,0.0002,7]
[420418547,1776089462144,-483.04831,0.00013699,2]
[420418548,1776089462158,-16.95169,0.00013699,2]
[420418549,1776089469684,-514.51269732,8.998e-05,2]
[420418550,1776089469710,-514.51269732,8.998e-05,2]
[420418551,1776089469721,-514.51269732,8.998e-05,2]
[420418552,1776089469739,-514.51269732,8.998e-05,2]
[420418553,1776089469750,-514.51269732,8.998e-05,2]
[420418554,1776089469762,-514.51269732,8.998e-05,2]
[420418555,1776089469789,-514.51269732,8.998e-05,2]
[420418556,1776089469806,-514.51269732,8.998e-05,2]
[420418557,1776089469815,-500.0,8.998e-05,2]
[420418558,1776089469843,-500.0,8.998e-05,2]
[420418559,1776089469854,-500.0,8.998e-05,2]
[420418560,1776089469885,-500.0,8.998e-05,2]
[420418561,1776089469904,-276.39807817,8.998e-05,2]
[420418562,1776089469929,-500.0,8.998e-05,2]
[420418564,1776089469939,-500.0,8.998e-05,2]
[420418566,1776089469970,-500.0,8.998e-05,2]
[420418567,1776089469985,-500.0,8.998e-05,2]
[420418568,1776089470015,-152.0,0.00010595,2]
[420418569,1776089470031,-500.0,0.00010959,2]
[420418570,1776089470071,-443.5231727,0.00010959,2]
[420418571,1776089470089,-500.0,0.00010959,2]
[420418572,1776089470115,-500.0,0.00010959,2]
[420418573,1776089470126,-500.0,0.00010959,2]
[420418574,1776089470150,-5000.0,0.00013562,2]
[420418575,1776089470161,-466.09662,0.00013699,2]
[420418576,1776089470188,-483.04831,0.00013699,2]
[420418577,1776089470201,-483.04831,0.00013699,2]
[420418578,1776089470220,-483.04831,0.00013699,2]
[420418579,1776089470249,-483.04831,0.00013699,2]
[420418580,1776089470260,-483.04831,0.00013699,2]
[420418581,1776089470270,-483.04831,0.00013699,2]
[420418582,1776089470319,-483.04831,0.00013699,2]
[420418583,1776089470335,-483.04831,0.00013699,2]
[420418584,1776089470355,-483.04831,0.00013699,2]
[420418585,1776089470389,-483.04831,0.00013699,2]
[420418586,1776089470402,-483.048317,0.00013699,2]
[420418587,1776089470423,-169.1634552,0.00013699,2]
[420418588,1776089470450,-600.0,0.00013832,2]
[420418589,1776089470476,-300.0,0.00013972,2]
[420418590,1776089470486,-300.0,0.00013972,2]
[420418591,1776089470508,-300.0,0.00013972,2]
[420418592,1776089470526,-300.0,0.00013972,2]
[420418593,1776089470536,-300.0,0.00013972,2]
[420418594,1776089470554,-300.0,0.00013972,2]
[420418595,1776089470572,-300.0,0.00013972,2]
[420418596,1776089470594,-300.0,0.00013972,2]
[420418597,1776089470604,-300.0,0.00013972,2]
[420418598,1776089470615,-300.0,0.00013972,2]
[420418599,1776089470632,-300.0,0.00013972,2]
[420418600,1776089470643,-300.0,0.00013972,2]
[420418601,1776089470653,-300.0,0.00013972,2]
[420418602,1776089470667,-300.0,0.00013972,2]
[420418603,1776089470681,-300.0,0.00013972,2]
[420418604,1776089470692,-352.495,0.00014247,2]
[420418605,1776089470709,-10101.23631528,0.00015,2]
[420418606,1776089470719,-10101.23631528,0.000152,2]
[420418607,1776089470729,-720.0,0.00015215,2]
[420418608,1776089470741,-1838.21804781,0.000153,2]
[420418609,1776089470759,-2116.377936,0.000153,2]
[420418810,1776090638304,-5000.0,8.467e-05,2]
[420418811,1776090638325,-517.0,8.467e-05,2]
[420418812,1776090638342,-300.0,9.176e-05,2]
[420418813,1776090638365,-300.0,9.176e-05,2]
[420418814,1776090638381,-1013.0,9.176e-05,2]
[420418815,1776090638405,-300.0,9.177e-05,2]
[420418816,1776090638552,-300.0,9.177e-05,2]
[420418817,1776090638626,-300.0,9.177e-05,2]
[420418818,1776090638637,-300.0,9.177e-05,2]
[420418819,1776090638649,-300.0,9.177e-05,2]
[420418820,1776090638659,-300.0,9.177e-05,2]
[420418821,1776090638675,-300.0,9.177e-05,2]
[420418822,1776090638686,-300.0,9.177e-05,2]
[420418823,1776090638696,-300.0,9.177e-05,2]
[420418824,1776090638711,-300.0,9.177e-05,2]
[420418825,1776090638723,-300.0,9.177e-05,2]
[420418826,1776090638733,-300.0,9.177e-05,2]
[420418827,1776090638745,-300.0,9.177e-05,2]
[420418828,1776090638755,-300.0,9.177e-05,2]
[420418829,1776090638767,-300.0,9.177e-05,2]
[420418830,1776090638776,-600.0,9.36e-05,2]
[420418831,1776090638789,-720.0,0.00010295,2]
[420418832,1776090638799,-177.0,0.00010554,2]
[420418833,1776090638811,-362.88164043,0.00011301,2]
[420418834,1776090638820,-864.0,0.00011325,2]
[420418835,1776090638833,-2150.738,0.00011603,2]
[420418836,1776090638845,-2230.315306,0.00012151,2]
[420418837,1776090638857,-1000.0,0.00012458,2]
[420418838,1776090638867,-204.0,0.00012554,2]
[420418839,1776090638877,-2312.83697232,0.00012699,2]
[420418840,1776090638893,-1644.33812948,0.00013247,2]
[420418841,1776090638906,-152.82317737,0.00013698,2]
[420418842,1776090638915,-500.0,0.00013698,2]
[420418843,1776090638931,-2407.087395,0.00013699,2]
[420418844,1776090638945,-1786.079412,0.00013699,2]
[420418845,1776090638955,-1000.0,0.00013699,2]
[420418846,1776090638967,-1000.0,0.00013703,2]
[420418847,1776090638983,-244.0,0.00013703,2]
[420418848,1776090638995,-332.24070668,0.0001371,2]
[420418849,1776090639004,-1130.8775412,0.00013743,2]
[420418850,1776090639024,-184.0,0.00013786,2]
[420418851,1776090639034,-151.0,0.000138,2]
[420418852,1776090639043,-500.0,0.00013842,2]
[420418853,1776090639060,-268.41441864,0.00013842,2]
[420418854,1776090639074,-500.0,0.00013842,2]
[420418855,1776090639083,-500.0,0.00013842,2]
[420418856,1776090639093,-650.0,0.00013842,2]
[420418857,1776090639113,-500.0,0.00013842,2]
[420418858,1776090639124,-500.0,0.00013842,2]
[420418859,1776090639133,-500.0,0.00013842,2]
[420418860,1776090639155,-500.0,0.00013842,2]
[420418861,1776090639166,-500.0,0.00013842,2]
[420418862,1776090639176,-500.0,0.00013842,2]
[420418863,1776090639188,-500.0,0.00013842,2]
[420418864,1776090639201,-204.11102491,0.00013842,2]
[420418865,1776090639212,-500.0,0.00013842,2]
[420418866,1776090639221,-500.0,0.00013842,2]
[420418867,1776090639235,-362.02029053,0.00013842,2]
[420418868,1776090639248,-669.97989604,0.00013842,2]
[420418869,1776090639258,-500.0,0.00013842,2]
[420418870,1776090639268,-500.0,0.00013842,2]
[420418871,1776090639281,-669.97989604,0.00013842,2]
[420418872,1776090639293,-669.97989604,0.00013842,2]
[420418873,1776090639305,-669.97989604,0.00013842,2]
[420418874,1776090639314,-500.0,0.00013842,2]
[420418875,1776090639323,-669.97989604,0.00013842,2]
[420418876,1776090639336,-669.97989604,0.00013842,2]
[420418877,1776090639349,-669.97989604,0.00013842,2]
[420418878,1776090639358,-669.97989604,0.00013842,2]
[420418879,1776090639367,-669.97989604,0.00013842,2]
[420418880,1776090639380,-669.97989604,0.00013842,2]
[420418881,1776090639398,-669.97989604,0.00013842,2]
[420418882,1776090639407,-669.97989604,0.00013842,2]
[420418883,1776090639417,-669.97989604,0.00013842,2]
[420418884,1776090639431,-717.83560289,0.00013842,2]
[420418886,1776090639446,-717.83560289,0.00013842,2]
[420418888,1776090639458,-717.83560289,0.00013842,2]
[420418890,1776090639472,-717.83560289,0.00013842,2]
[420418892,1776090639486,-717.83560289,0.00013842,2]
[420418894,1776090639496,-821.52296775,0.00013842,2]
[420418896,1776090639512,-152.0,0.00013843,2]
[420418897,1776090639530,-152.0,0.00013843,2]
[420418898,1776090639547,-4800.69458502,0.00013843,2]
[420418899,1776090639559,-1341.25548051,0.00013843,2]
[420418900,1776090639599,-502.3835556,0.00013843,2]
[420418901,1776090639625,-2505.66351195,0.00013843,2]
[420418902,1776090639643,-3762.27447946,0.00013843,2]
[420418907,1776090640616,-558.0,0.00013843,2]
[420418908,1776090640631,-354.69225279,0.00013843,2]
[420418909,1776090640709,-309.55528431,0.00013843,2]
[420418910,1776090640722,-3942.5889044,0.00013843,2]
[420418911,1776090640738,-2208.71175107,0.00013843,2]
[420418912,1776090640755,-709.05792851,0.00013843,2]